[Event "Sabato rapido!"]
[Site "Chess.com"]
[Date "2020.05.16"]
[Round "1"]
[White "Mrtre7"]
[Black "APipitone"]
[Result "0-1"]
[WhiteElo "1469"]
[BlackElo "1865"]
[TimeControl "720+3"]
[EndTime "6:09:28 PDT"]
[Termination "APipitone ha vinto per abbandono"]

1. d4 {[%clk 0:11:40.4]} 1... Nf6 {[%clk 0:11:57.3]} 2. c4 {[%clk 0:11:42.2]}
2... e6 {[%clk 0:11:43.6]} 3. Nc3 {[%clk 0:11:42.8]} 3... d5 {[%clk 0:11:43.5]}
4. cxd5 {[%clk 0:11:38.9]} 4... exd5 {[%clk 0:11:42.7]} 5. Bg5 {[%clk
0:11:32.5]} 5... Be7 {[%clk 0:11:42.3]} 6. e3 {[%clk 0:11:21.6]} 6... O-O {[%clk
0:11:40.8]} 7. Bd3 {[%clk 0:10:55.1]} 7... Nbd7 {[%clk 0:11:09.5]} 8. Nge2
{[%clk 0:10:55.5]} 8... c5 {[%clk 0:11:07.8]} 9. dxc5 {[%clk 0:10:25.1]} 9...
Nxc5 {[%clk 0:11:01.3]} 10. Bxf6 {[%clk 0:10:03.9]} 10... Bxf6 {[%clk
0:11:00.1]} 11. Nxd5 {[%clk 0:09:53.5]} 11... Nxd3+ {[%clk 0:10:43.3]} 12. Qxd3
{[%clk 0:09:54.5]} 12... Bxb2 {[%clk 0:10:32.2]} 13. Rb1 {[%clk 0:09:48.1]}
13... Qa5+ {[%clk 0:10:26.8]} 14. Nec3 {[%clk 0:09:31.3]} 14... Bxc3+ {[%clk
0:10:07.8]} 15. Nxc3 {[%clk 0:09:05]} 15... Rd8 {[%clk 0:10:00.1]} 16. Qc2
{[%clk 0:09:02.6]} 16... Bf5 {[%clk 0:09:47]} 17. e4 {[%clk 0:08:30.7]} 17...
Bxe4 {[%clk 0:09:44.2]} 0-1

[Event "Sabato rapido!"]
[Site "Chess.com"]
[Date "2020.05.16"]
[Round "1"]
[White "crippo"]
[Black "OMatteoWuO"]
[Result "1-0"]
[WhiteElo "1523"]
[BlackElo "1175"]
[TimeControl "720+3"]
[EndTime "6:11:27 PDT"]
[Termination "crippo ha vinto per abbandono"]

1. e4 {[%clk 0:11:58.3]} 1... c5 {[%clk 0:12:01.1]} 2. Nc3 {[%clk 0:11:58.9]}
2... Nc6 {[%clk 0:12:02.3]} 3. Nf3 {[%clk 0:12:00]} 3... Nf6 {[%clk 0:11:51.4]}
4. Bb5 {[%clk 0:11:59.8]} 4... a6 {[%clk 0:11:44.7]} 5. Bxc6 {[%clk 0:11:59.9]}
5... dxc6 {[%clk 0:11:37.1]} 6. d3 {[%clk 0:12:00.5]} 6... Bg4 {[%clk
0:11:16.8]} 7. h3 {[%clk 0:12:00.9]} 7... Bxf3 {[%clk 0:11:18.3]} 8. Qxf3 {[%clk
0:12:01.8]} 8... e5 {[%clk 0:11:18.3]} 9. O-O {[%clk 0:11:59.5]} 9... Qc7 {[%clk
0:11:19]} 10. Bg5 {[%clk 0:12:01]} 10... Be7 {[%clk 0:11:14.9]} 11. Rad1 {[%clk
0:11:58.4]} 11... h6 {[%clk 0:11:10.7]} 12. Bh4 {[%clk 0:11:59.2]} 12... O-O-O
{[%clk 0:11:01.3]} 13. a3 {[%clk 0:11:34.1]} 13... g5 {[%clk 0:10:43.9]} 14. Bg3
{[%clk 0:11:34.6]} 14... Rh7 {[%clk 0:10:24.8]} 15. Qf5+ {[%clk 0:11:35.2]}
15... Kb8 {[%clk 0:10:22.9]} 16. Bxe5 {[%clk 0:11:35.4]} 16... Bd6 {[%clk
0:10:08.9]} 17. Bxf6 {[%clk 0:11:37.2]} 17... Rhh8 {[%clk 0:10:00.2]} 18. Bxd8
{[%clk 0:11:33.5]} 18... Rxd8 {[%clk 0:10:01.5]} 19. Rfe1 {[%clk 0:11:22.5]}
19... Bh2+ {[%clk 0:09:51.9]} 20. Kh1 {[%clk 0:11:21]} 20... Bf4 {[%clk
0:09:51.3]} 21. e5 {[%clk 0:11:08.6]} 21... Re8 {[%clk 0:09:22.8]} 22. e6 {[%clk
0:10:59]} 22... fxe6 {[%clk 0:09:11]} 23. Rxe6 {[%clk 0:10:59.7]} 23... Rd8
{[%clk 0:09:01.2]} 24. Rde1 {[%clk 0:10:58.3]} 24... Ka7 {[%clk 0:08:43]} 25.
Qxc5+ {[%clk 0:10:57.6]} 25... Kb8 {[%clk 0:08:43.9]} 26. Re7 {[%clk 0:10:52.9]}
26... Bd6 {[%clk 0:08:13.5]} 27. Rxc7 {[%clk 0:10:53.6]} 27... Bxc5 {[%clk
0:08:15.1]} 28. Rf7 {[%clk 0:10:51.4]} 28... Ka8 {[%clk 0:07:50.2]} 29. Na4
{[%clk 0:10:50.3]} 29... Ba7 {[%clk 0:07:46.4]} 30. Ree7 {[%clk 0:10:46.7]}
30... Rb8 {[%clk 0:07:21]} 31. c4 {[%clk 0:10:44.3]} 31... h5 {[%clk 0:07:15.7]}
32. b4 {[%clk 0:10:43.6]} 32... g4 {[%clk 0:07:14.1]} 33. c5 {[%clk 0:10:41.6]}
33... gxh3 {[%clk 0:07:10.2]} 34. gxh3 {[%clk 0:10:42.7]} 34... h4 {[%clk
0:07:06.8]} 35. f4 {[%clk 0:10:42.5]} 1-0

[Event "Sabato rapido!"]
[Site "Chess.com"]
[Date "2020.05.16"]
[Round "1"]
[White "laremaro"]
[Black "sirmale49"]
[Result "1/2-1/2"]
[WhiteElo "1663"]
[BlackElo "1416"]
[TimeControl "720+3"]
[EndTime "6:16:22 PDT"]
[Termination "Partita patta per ripetizione di mosse"]

1. e4 {[%clk 0:12:00.8]} 1... d5 {[%clk 0:11:45.4]} 2. Nc3 {[%clk 0:12:01.2]}
2... d4 {[%clk 0:11:42.3]} 3. Nce2 {[%clk 0:12:03]} 3... e5 {[%clk 0:11:39.4]}
4. Ng3 {[%clk 0:12:01.4]} 4... g6 {[%clk 0:11:34.7]} 5. Nf3 {[%clk 0:11:54.7]}
5... Nc6 {[%clk 0:11:35.5]} 6. Bb5 {[%clk 0:11:55.9]} 6... Bd6 {[%clk
0:11:27.7]} 7. Bxc6+ {[%clk 0:11:44.6]} 7... bxc6 {[%clk 0:11:28.1]} 8. d3
{[%clk 0:11:45.8]} 8... Rb8 {[%clk 0:11:16.4]} 9. b3 {[%clk 0:11:46.4]} 9...
Bb4+ {[%clk 0:11:12.3]} 10. Bd2 {[%clk 0:11:28.7]} 10... Bxd2+ {[%clk
0:11:03.7]} 11. Qxd2 {[%clk 0:11:30.2]} 11... f6 {[%clk 0:11:05.3]} 12. h4
{[%clk 0:11:18.8]} 12... Ne7 {[%clk 0:11:00.2]} 13. Qh6 {[%clk 0:11:18.4]} 13...
Kd7 {[%clk 0:10:45.4]} 14. Qg7 {[%clk 0:11:12.1]} 14... Qf8 {[%clk 0:10:40.7]}
15. Qxf8 {[%clk 0:11:09.1]} 15... Rxf8 {[%clk 0:10:40.1]} 16. O-O {[%clk
0:11:01.8]} 16... h6 {[%clk 0:10:33.3]} 17. Nd2 {[%clk 0:11:02.3]} 17... f5
{[%clk 0:09:56.7]} 18. f4 {[%clk 0:10:39.3]} 18... fxe4 {[%clk 0:09:33.2]} 19.
fxe5 {[%clk 0:10:38.3]} 19... Rxf1+ {[%clk 0:09:23.4]} 20. Rxf1 {[%clk
0:10:37.2]} 20... e3 {[%clk 0:09:21.6]} 21. Nde4 {[%clk 0:10:35.2]} 21... Nd5
{[%clk 0:09:10.7]} 22. Nf6+ {[%clk 0:10:29]} 22... Nxf6 {[%clk 0:09:11.4]} 23.
Rxf6 {[%clk 0:10:19.5]} 23... Ke7 {[%clk 0:08:41]} 24. Rxg6 {[%clk 0:10:13.1]}
24... Be6 {[%clk 0:08:21.5]} 25. Rg7+ {[%clk 0:10:01.4]} 25... Kf8 {[%clk
0:08:06.6]} 26. Rxc7 {[%clk 0:10:02.8]} 26... Bd5 {[%clk 0:08:06]} 27. Rh7
{[%clk 0:09:38.6]} 27... Kg8 {[%clk 0:07:57.5]} 28. Rxa7 {[%clk 0:09:34.4]}
28... Rf8 {[%clk 0:07:49.1]} 29. e6 {[%clk 0:09:18.2]} 29... Bxe6 {[%clk
0:07:34.6]} 30. Re7 {[%clk 0:09:18.4]} 30... Bd5 {[%clk 0:07:32.8]} 31. a4
{[%clk 0:09:06.4]} 31... Rf2 {[%clk 0:07:31.8]} 32. Ne4 {[%clk 0:08:56.4]} 32...
Rxc2 {[%clk 0:07:15.9]} 33. Nf6+ {[%clk 0:08:54.5]} 33... Kf8 {[%clk 0:07:11.4]}
34. Nxd5 {[%clk 0:08:56.3]} 34... cxd5 {[%clk 0:07:12.7]} 35. Re5 {[%clk
0:08:53.5]} 35... Rc3 {[%clk 0:07:13.2]} 36. b4 {[%clk 0:08:43.8]} 36... Rxd3
{[%clk 0:07:13.4]} 37. b5 {[%clk 0:08:45.5]} 37... Ra3 {[%clk 0:07:14]} 38. Rxd5
{[%clk 0:08:46.9]} 38... Rxa4 {[%clk 0:07:12.7]} 39. b6 {[%clk 0:08:49.1]} 39...
Rb4 {[%clk 0:07:13.5]} 40. b7 {[%clk 0:08:50.6]} 40... Ke7 {[%clk 0:07:10.9]}
41. Rxd4 {[%clk 0:08:51.3]} 41... Rxb7 {[%clk 0:07:02.2]} 42. Re4+ {[%clk
0:08:52.8]} 42... Kf6 {[%clk 0:07:02.4]} 43. Rxe3 {[%clk 0:08:55.3]} 43... Kf5
{[%clk 0:07:04.1]} 44. Rf3+ {[%clk 0:08:44.5]} 44... Kg4 {[%clk 0:07:05.4]} 45.
Rf6 {[%clk 0:08:36.1]} 45... Kg3 {[%clk 0:07:01.1]} 46. Rg6+ {[%clk 0:08:32]}
46... Kxh4 {[%clk 0:07:01.8]} 47. Rxh6+ {[%clk 0:08:34]} 47... Kg3 {[%clk
0:07:02.1]} 48. Rg6+ {[%clk 0:08:35.2]} 48... Kh4 {[%clk 0:06:57.2]} 49. Kh2
{[%clk 0:08:37.6]} 49... Kh5 {[%clk 0:06:54.5]} 50. Rg8 {[%clk 0:08:35.9]} 50...
Rb2 {[%clk 0:06:41.9]} 51. Kh3 {[%clk 0:08:33.7]} 51... Rc2 {[%clk 0:06:37.4]}
52. g4+ {[%clk 0:08:26.8]} 52... Kh6 {[%clk 0:06:37.2]} 53. Kh4 {[%clk
0:08:19.6]} 53... Rh2+ {[%clk 0:06:31.4]} 54. Kg3 {[%clk 0:08:21.1]} 54... Ra2
{[%clk 0:06:30.3]} 55. Kh4 {[%clk 0:08:21.3]} 55... Rh2+ {[%clk 0:06:30.6]} 56.
Kg3 {[%clk 0:08:23.4]} 56... Ra2 {[%clk 0:06:32]} 57. Kh4 {[%clk 0:08:23.8]}
57... Rh2+ {[%clk 0:06:32.9]} 1/2-1/2

[Event "Sabato rapido!"]
[Site "Chess.com"]
[Date "2020.05.16"]
[Round "1"]
[White "SanSecondoPR"]
[Black "pedrak"]
[Result "0-1"]
[WhiteElo "1248"]
[BlackElo "1659"]
[TimeControl "720+3"]
[EndTime "6:16:33 PDT"]
[Termination "pedrak ha vinto per abbandono"]

1. e4 {[%clk 0:12:00.7]} 1... d5 {[%clk 0:11:57.4]} 2. Nf3 {[%clk 0:11:59.1]}
2... dxe4 {[%clk 0:11:51.1]} 3. Ng5 {[%clk 0:11:56.4]} 3... Nf6 {[%clk
0:11:52.3]} 4. d3 {[%clk 0:11:56.3]} 4... Bf5 {[%clk 0:11:42.2]} 5. Be2 {[%clk
0:11:38.4]} 5... exd3 {[%clk 0:11:42.1]} 6. cxd3 {[%clk 0:11:38.7]} 6... h6
{[%clk 0:11:41.4]} 7. Nf3 {[%clk 0:11:10.9]} 7... c6 {[%clk 0:11:38.2]} 8. Qb3
{[%clk 0:11:01.6]} 8... Qb6 {[%clk 0:11:37.4]} 9. O-O {[%clk 0:10:51]} 9... e6
{[%clk 0:11:37.4]} 10. Nc3 {[%clk 0:10:32.5]} 10... Qxb3 {[%clk 0:11:28.6]} 11.
axb3 {[%clk 0:10:31.4]} 11... Nbd7 {[%clk 0:11:29.6]} 12. Nd4 {[%clk 0:10:22.7]}
12... Bg6 {[%clk 0:11:25.5]} 13. Be3 {[%clk 0:09:45.8]} 13... Be7 {[%clk
0:11:06.3]} 14. Nf3 {[%clk 0:09:26.5]} 14... a6 {[%clk 0:10:51.4]} 15. Na4
{[%clk 0:09:14.2]} 15... O-O {[%clk 0:10:50.1]} 16. Nb6 {[%clk 0:09:12.5]} 16...
Nxb6 {[%clk 0:10:50.3]} 17. Bxb6 {[%clk 0:09:09.1]} 17... Nd5 {[%clk 0:10:51.3]}
18. Bd4 {[%clk 0:08:56.7]} 18... f6 {[%clk 0:10:32.1]} 19. Nh4 {[%clk
0:08:29.1]} 19... Bh7 {[%clk 0:10:31.5]} 20. f3 {[%clk 0:07:44.6]} 20... Nf4
{[%clk 0:10:21.9]} 21. Rae1 {[%clk 0:07:22.6]} 21... e5 {[%clk 0:10:19.4]} 22.
Bc3 {[%clk 0:07:10.2]} 22... Nxd3 {[%clk 0:10:17.8]} 23. Bxd3 {[%clk 0:07:04.5]}
23... Bxd3 {[%clk 0:10:18.4]} 24. Rf2 {[%clk 0:07:04.4]} 24... Bc5 {[%clk
0:10:19.4]} 25. Rd1 {[%clk 0:06:56]} 25... Bc2 {[%clk 0:10:12.1]} 26. Rd2 {[%clk
0:06:50.6]} 26... Bxb3 {[%clk 0:10:11.4]} 27. Rd7 {[%clk 0:06:41.3]} 27... Rf7
{[%clk 0:09:59.8]} 28. Rxf7 {[%clk 0:06:32.8]} 28... Kxf7 {[%clk 0:10:00.7]} 29.
Kf1 {[%clk 0:06:33]} 29... Bxf2 {[%clk 0:10:01.3]} 30. Kxf2 {[%clk 0:06:34]}
30... Rd8 {[%clk 0:10:01.6]} 31. Nf5 {[%clk 0:06:26.4]} 31... c5 {[%clk
0:09:56.3]} 32. h4 {[%clk 0:06:16.1]} 32... b5 {[%clk 0:09:55.3]} 33. Ba5 {[%clk
0:06:10.4]} 33... Rd7 {[%clk 0:09:56.1]} 34. g4 {[%clk 0:06:00.4]} 34... b4
{[%clk 0:09:50.8]} 35. g5 {[%clk 0:05:55.6]} 35... hxg5 {[%clk 0:09:48]} 36.
hxg5 {[%clk 0:05:54.5]} 36... Kg6 {[%clk 0:09:49.4]} 37. Ng3 {[%clk 0:05:46]}
37... Rd2+ {[%clk 0:09:45.2]} 38. Ke3 {[%clk 0:05:39.4]} 38... Rxb2 {[%clk
0:09:46.2]} 39. gxf6 {[%clk 0:05:35.9]} 39... gxf6 {[%clk 0:09:47.1]} 40. Ne4
{[%clk 0:05:31.7]} 40... Rc2 {[%clk 0:09:37.4]} 41. Kd3 {[%clk 0:05:20.8]} 41...
f5 {[%clk 0:09:24]} 42. Nd6 {[%clk 0:05:12.7]} 42... Rc3+ {[%clk 0:09:22.2]} 43.
Kd2 {[%clk 0:05:03.3]} 43... Rxf3 {[%clk 0:09:20.7]} 44. Bc7 {[%clk 0:04:52.4]}
44... e4 {[%clk 0:09:10.8]} 45. Ke2 {[%clk 0:04:45.7]} 45... Bd5 {[%clk
0:09:00.7]} 46. Nb7 {[%clk 0:04:31.7]} 46... Bxb7 {[%clk 0:08:59.4]} 0-1

[Event "Sabato rapido!"]
[Site "Chess.com"]
[Date "2020.05.16"]
[Round "1"]
[White "fausto2p"]
[Black "sergiodone"]
[Result "0-1"]
[WhiteElo "1171"]
[BlackElo "1477"]
[TimeControl "720+3"]
[EndTime "6:17:25 PDT"]
[Termination "sergiodone ha vinto per abbandono"]

1. d4 {[%clk 0:12:01.9]} 1... c5 {[%clk 0:11:57.6]} 2. d5 {[%clk 0:11:50.3]}
2... d6 {[%clk 0:11:56.4]} 3. c4 {[%clk 0:11:41.9]} 3... b5 {[%clk 0:11:57.7]}
4. cxb5 {[%clk 0:11:37.3]} 4... a6 {[%clk 0:11:58.3]} 5. e4 {[%clk 0:11:13.4]}
5... Nd7 {[%clk 0:11:52.1]} 6. Nf3 {[%clk 0:11:05.5]} 6... g6 {[%clk 0:11:40.5]}
7. Nc3 {[%clk 0:11:04.2]} 7... Bg7 {[%clk 0:11:37.2]} 8. Rb1 {[%clk 0:09:55.1]}
8... Ngf6 {[%clk 0:11:36.3]} 9. a4 {[%clk 0:09:44.8]} 9... O-O {[%clk 0:11:31]}
10. b3 {[%clk 0:09:03]} 10... Qa5 {[%clk 0:11:17.2]} 11. Bd2 {[%clk 0:08:44.1]}
11... Qb6 {[%clk 0:11:18.5]} 12. bxa6 {[%clk 0:08:21]} 12... Bxa6 {[%clk
0:11:17.3]} 13. Bxa6 {[%clk 0:08:21.9]} 13... Qxa6 {[%clk 0:11:18.4]} 14. Nb5
{[%clk 0:08:22]} 14... Rfc8 {[%clk 0:11:09.8]} 15. O-O {[%clk 0:08:07.7]} 15...
Nxe4 {[%clk 0:11:10.3]} 16. Be3 {[%clk 0:07:07.4]} 16... Ndf6 {[%clk 0:11:07.8]}
17. Ng5 {[%clk 0:06:33.6]} 17... Qb7 {[%clk 0:10:56.2]} 18. Nxe4 {[%clk
0:05:59.8]} 18... Nxe4 {[%clk 0:10:54.7]} 19. f3 {[%clk 0:05:42.6]} 19... Nf6
{[%clk 0:10:44.7]} 20. Nc3 {[%clk 0:05:33.8]} 20... Qa6 {[%clk 0:09:03.8]} 21.
Re1 {[%clk 0:04:38.2]} 21... Re8 {[%clk 0:08:39.6]} 22. Nb5 {[%clk 0:04:34.9]}
22... Qb7 {[%clk 0:08:31.4]} 23. Nc3 {[%clk 0:04:31.1]} 23... Nd7 {[%clk
0:08:06.5]} 24. Nb5 {[%clk 0:04:19]} 24... Ne5 {[%clk 0:07:54.5]} 25. Qd2 {[%clk
0:03:58.3]} 25... Qd7 {[%clk 0:07:20]} 26. Qd3 {[%clk 0:03:03.8]} 26... Nxd3
{[%clk 0:07:19]} 0-1

[Event "Sabato rapido!"]
[Site "Chess.com"]
[Date "2020.05.16"]
[Round "2"]
[White "APipitone"]
[Black "crippo"]
[Result "1-0"]
[WhiteElo "1912"]
[BlackElo "1519"]
[TimeControl "720+3"]
[EndTime "6:26:29 PDT"]
[Termination "APipitone ha vinto per scaccomatto"]

1. e4 {[%clk 0:11:57.3]} 1... e5 {[%clk 0:11:59.8]} 2. Nf3 {[%clk 0:11:57.1]}
2... Nc6 {[%clk 0:12:00.7]} 3. Bb5 {[%clk 0:11:55.4]} 3... d6 {[%clk 0:12:01.9]}
4. d4 {[%clk 0:11:38.3]} 4... Bg4 {[%clk 0:12:00.3]} 5. dxe5 {[%clk 0:10:52.9]}
5... Bxf3 {[%clk 0:11:46.2]} 6. Qxf3 {[%clk 0:10:51.1]} 6... dxe5 {[%clk
0:11:45.1]} 7. Be3 {[%clk 0:10:35.1]} 7... Nf6 {[%clk 0:11:44]} 8. Nc3 {[%clk
0:10:26.1]} 8... Be7 {[%clk 0:11:45.4]} 9. Rd1 {[%clk 0:10:20.9]} 9... Qc8
{[%clk 0:11:46.6]} 10. h3 {[%clk 0:10:18]} 10... O-O {[%clk 0:11:47.2]} 11. O-O
{[%clk 0:10:01.6]} 11... Bd6 {[%clk 0:11:35.8]} 12. g4 {[%clk 0:09:34.7]} 12...
a6 {[%clk 0:11:28.2]} 13. Ba4 {[%clk 0:09:33.1]} 13... h6 {[%clk 0:11:19.5]} 14.
Ne2 {[%clk 0:09:28.1]} 14... Nh7 {[%clk 0:11:19.2]} 15. Ng3 {[%clk 0:09:23.1]}
15... Ng5 {[%clk 0:11:18.4]} 16. Bxg5 {[%clk 0:09:17.9]} 16... hxg5 {[%clk
0:11:19.6]} 17. Nf5 {[%clk 0:09:13.4]} 17... f6 {[%clk 0:11:13.9]} 18. Bb3+
{[%clk 0:08:58.6]} 18... Kh8 {[%clk 0:11:08.5]} 19. Rxd6 {[%clk 0:08:11.1]}
19... cxd6 {[%clk 0:11:06.8]} 20. Nxd6 {[%clk 0:08:09.9]} 20... Qc7 {[%clk
0:10:59]} 21. Nf5 {[%clk 0:08:00.7]} 21... Nd4 {[%clk 0:10:47.6]} 22. Nxd4
{[%clk 0:07:59.9]} 22... exd4 {[%clk 0:10:49.5]} 23. Qf5 {[%clk 0:07:52.2]}
23... Qe5 {[%clk 0:10:49.2]} 24. Qg6 {[%clk 0:07:45.6]} 24... Rae8 {[%clk
0:10:17]} 25. Qh5# {[%clk 0:07:40]} 1-0

[Event "Sabato rapido!"]
[Site "Chess.com"]
[Date "2020.05.16"]
[Round "2"]
[White "OMatteoWuO"]
[Black "SanSecondoPR"]
[Result "0-1"]
[WhiteElo "1165"]
[BlackElo "1258"]
[TimeControl "720+3"]
[EndTime "6:31:46 PDT"]
[Termination "SanSecondoPR ha vinto per abbandono"]

1. d4 {[%clk 0:12:01.4]} 1... d5 {[%clk 0:11:59.9]} 2. c4 {[%clk 0:12:02.6]}
2... e5 {[%clk 0:12:00.1]} 3. dxe5 {[%clk 0:12:03.4]} 3... d4 {[%clk 0:12:01.3]}
4. Nf3 {[%clk 0:12:04.1]} 4... Nc6 {[%clk 0:12:02.2]} 5. Bf4 {[%clk 0:11:57.5]}
5... Nge7 {[%clk 0:11:56.9]} 6. Nbd2 {[%clk 0:11:55.3]} 6... Ng6 {[%clk
0:11:56.5]} 7. Bg3 {[%clk 0:11:46.5]} 7... h5 {[%clk 0:11:49.5]} 8. h4 {[%clk
0:11:38.5]} 8... Be7 {[%clk 0:11:35.1]} 9. Nb3 {[%clk 0:11:23]} 9... Bb4+ {[%clk
0:11:25.5]} 10. Nbd2 {[%clk 0:11:18.5]} 10... Bg4 {[%clk 0:11:16.8]} 11. a3
{[%clk 0:11:12.8]} 11... Be7 {[%clk 0:10:57.2]} 12. Nb3 {[%clk 0:09:49.5]} 12...
Bxf3 {[%clk 0:10:56.5]} 13. exf3 {[%clk 0:09:47.5]} 13... Ngxe5 {[%clk
0:10:31.6]} 14. Bxe5 {[%clk 0:09:41.1]} 14... Nxe5 {[%clk 0:10:30.6]} 15. Qxd4
{[%clk 0:09:42.4]} 15... Bf6 {[%clk 0:10:23.7]} 16. Qxd8+ {[%clk 0:09:43.4]}
16... Rxd8 {[%clk 0:10:20.6]} 17. Be2 {[%clk 0:09:32.2]} 17... O-O {[%clk
0:10:15.6]} 18. O-O {[%clk 0:09:31.7]} 18... Bxh4 {[%clk 0:10:04.9]} 19. Nc5
{[%clk 0:09:24.8]} 19... b6 {[%clk 0:09:47.2]} 20. Ne4 {[%clk 0:09:18.8]} 20...
f5 {[%clk 0:09:37.9]} 21. Nc3 {[%clk 0:09:13.4]} 21... Rd2 {[%clk 0:09:17.7]}
22. f4 {[%clk 0:08:43.6]} 22... Nc6 {[%clk 0:09:01.2]} 23. Rad1 {[%clk 0:08:41]}
23... Rxb2 {[%clk 0:08:51]} 24. g3 {[%clk 0:08:31.1]} 24... Bf6 {[%clk
0:08:47.3]} 25. Bf3 {[%clk 0:07:59.9]} 25... Nd4 {[%clk 0:08:38]} 26. Bd5+
{[%clk 0:07:50.5]} 26... Kh7 {[%clk 0:08:20.6]} 27. Kg2 {[%clk 0:07:28.9]} 27...
c6 {[%clk 0:08:16.7]} 28. Bf3 {[%clk 0:07:05.9]} 28... Nxf3 {[%clk 0:08:12.8]}
29. Kxf3 {[%clk 0:07:06.5]} 29... Bxc3 {[%clk 0:08:11]} 30. Rh1 {[%clk
0:07:07.9]} 30... g6 {[%clk 0:07:40.2]} 31. Rd7+ {[%clk 0:06:59.4]} 31... Kh6
{[%clk 0:07:37]} 32. Rxa7 {[%clk 0:06:34.5]} 32... Bd4 {[%clk 0:07:32.4]} 33.
Rf1 {[%clk 0:06:14.9]} 33... b5 {[%clk 0:07:21.9]} 34. Kg2 {[%clk 0:06:16.7]}
0-1

[Event "Sabato rapido!"]
[Site "Chess.com"]
[Date "2020.05.16"]
[Round "2"]
[White "pedrak"]
[Black "sergiodone"]
[Result "1-0"]
[WhiteElo "1664"]
[BlackElo "1473"]
[TimeControl "720+3"]
[EndTime "6:38:39 PDT"]
[Termination "pedrak ha vinto per abbandono"]

1. d4 {[%clk 0:12:02.9]} 1... Nf6 {[%clk 0:11:50.6]} 2. Nf3 {[%clk 0:12:03.7]}
2... c5 {[%clk 0:11:50]} 3. e3 {[%clk 0:12:02.8]} 3... b6 {[%clk 0:11:49.7]} 4.
Nbd2 {[%clk 0:12:01.6]} 4... Bb7 {[%clk 0:11:51.2]} 5. b3 {[%clk 0:12:01.4]}
5... d6 {[%clk 0:11:52.8]} 6. Bd3 {[%clk 0:11:59.5]} 6... Nbd7 {[%clk
0:11:54.4]} 7. O-O {[%clk 0:11:59.4]} 7... g6 {[%clk 0:11:56.3]} 8. Bb2 {[%clk
0:11:59.8]} 8... Bg7 {[%clk 0:11:57.8]} 9. c4 {[%clk 0:11:56.6]} 9... O-O {[%clk
0:11:49.1]} 10. Qc2 {[%clk 0:11:54.2]} 10... Rc8 {[%clk 0:11:48.6]} 11. d5
{[%clk 0:11:52.7]} 11... a6 {[%clk 0:11:41.4]} 12. Rfe1 {[%clk 0:11:49.7]} 12...
b5 {[%clk 0:11:11.7]} 13. e4 {[%clk 0:11:44.3]} 13... b4 {[%clk 0:11:09.7]} 14.
Rad1 {[%clk 0:11:20.7]} 14... a5 {[%clk 0:11:10.6]} 15. e5 {[%clk 0:11:18.7]}
15... dxe5 {[%clk 0:11:09.2]} 16. Nxe5 {[%clk 0:11:19.7]} 16... Nxe5 {[%clk
0:11:09.2]} 17. Bxe5 {[%clk 0:11:20.5]} 17... Ng4 {[%clk 0:11:05.6]} 18. Bxg7
{[%clk 0:11:20.8]} 18... Kxg7 {[%clk 0:11:06.6]} 19. h3 {[%clk 0:11:21.9]} 19...
Nf6 {[%clk 0:10:54.6]} 20. Re3 {[%clk 0:11:05.6]} 20... Qd6 {[%clk 0:10:56]} 21.
Rde1 {[%clk 0:11:05.7]} 21... Rc7 {[%clk 0:10:55.7]} 22. Qb2 {[%clk 0:11:02.6]}
22... Bc8 {[%clk 0:10:55.4]} 23. Ne4 {[%clk 0:11:03.5]} 23... Qb6 {[%clk
0:10:44.2]} 24. d6 {[%clk 0:10:33.8]} 24... Rd7 {[%clk 0:10:34.9]} 25. Rf3
{[%clk 0:10:05.7]} 25... Rxd6 {[%clk 0:09:35.4]} 26. Nxd6 {[%clk 0:10:05.4]}
26... Qxd6 {[%clk 0:09:34.7]} 27. Rd1 {[%clk 0:09:46.4]} 27... Qb6 {[%clk
0:09:25.9]} 28. Be4 {[%clk 0:09:35.6]} 28... Bb7 {[%clk 0:09:18.3]} 29. Bxb7
{[%clk 0:09:33.9]} 29... Qxb7 {[%clk 0:09:19.2]} 30. Qe5 {[%clk 0:09:26.2]}
30... Rc8 {[%clk 0:07:51.4]} 31. Rd5 {[%clk 0:08:21.5]} 31... Qc7 {[%clk
0:07:41.6]} 32. Qxc7 {[%clk 0:08:20.1]} 32... Rxc7 {[%clk 0:07:42.4]} 33. Re5
{[%clk 0:08:21.5]} 33... e6 {[%clk 0:07:40.2]} 34. Rd3 {[%clk 0:08:16.8]} 34...
h5 {[%clk 0:07:29.5]} 35. Rd6 {[%clk 0:08:12.3]} 35... Ra7 {[%clk 0:06:57.6]}
36. f3 {[%clk 0:08:00.9]} 36... a4 {[%clk 0:06:57.9]} 37. Rxc5 {[%clk 0:07:52]}
37... axb3 {[%clk 0:06:55]} 38. axb3 {[%clk 0:07:53.3]} 38... Ra3 {[%clk
0:06:46.5]} 39. Rd3 {[%clk 0:07:53.5]} 39... h4 {[%clk 0:06:12.9]} 40. Rb5
{[%clk 0:07:39.6]} 40... Ra1+ {[%clk 0:06:13.1]} 41. Kf2 {[%clk 0:07:39.4]}
41... Nh5 {[%clk 0:06:07.5]} 42. Rd2 {[%clk 0:07:19.6]} 42... Ng3 {[%clk
0:05:50]} 43. Rxb4 {[%clk 0:07:09.5]} 43... Rf1+ {[%clk 0:05:30.2]} 44. Ke3
{[%clk 0:07:09]} 44... f5 {[%clk 0:05:27.8]} 45. Kd4 {[%clk 0:06:53.7]} 45...
Ne2+ {[%clk 0:05:19]} 46. Kc5 {[%clk 0:06:51.7]} 46... Nf4 {[%clk 0:05:19.6]}
47. Kb5 {[%clk 0:06:45.9]} 47... Rc1 {[%clk 0:04:57.8]} 48. Ra4 {[%clk
0:06:42.5]} 48... Kf6 {[%clk 0:04:58.4]} 49. Ra6 {[%clk 0:06:42]} 49... Rc3
{[%clk 0:04:52.5]} 50. b4 {[%clk 0:06:37.9]} 50... Nd3 {[%clk 0:04:45.4]} 51. c5
{[%clk 0:06:31.1]} 51... Ne5 {[%clk 0:04:41.8]} 52. Rdd6 {[%clk 0:06:19.2]}
52... Kg5 {[%clk 0:04:18.1]} 53. Rxe6 {[%clk 0:06:18.6]} 53... Kf4 {[%clk
0:04:18]} 54. Rxe5 {[%clk 0:06:11.3]} 54... Kxe5 {[%clk 0:04:17.6]} 55. Rxg6
{[%clk 0:06:12.5]} 55... f4 {[%clk 0:03:48.8]} 56. Kb6 {[%clk 0:06:08.7]} 56...
Kf5 {[%clk 0:03:49.7]} 57. Rg4 {[%clk 0:06:05]} 57... Rc2 {[%clk 0:03:47]} 58.
c6 {[%clk 0:06:04]} 58... Rb2 {[%clk 0:03:37]} 59. b5 {[%clk 0:06:03.4]} 59...
Ke6 {[%clk 0:03:37.7]} 60. Rxf4 {[%clk 0:06:01.2]} 1-0